bitfinex/quotes_BTCUSD_20250826
["timestamp","ask_amount","ask_price","bid_price","bid_amount"]
[1756216488859,4.192e-05,110030.0,110020.0,1.08926933]
[1756216489293,4.192e-05,110030.0,110020.0,0.47400714]
[1756216489507,4.192e-05,110030.0,110020.0,1.08926933]
[1756216489937,4.192e-05,110030.0,110020.0,0.47400714]
[1756216490147,4.192e-05,110030.0,110020.0,0.56545243]
[1756216490363,4.192e-05,110030.0,110020.0,1.52071462]
[1756216490797,0.23873735,110100.0,110080.0,0.18168198]
[1756216490798,0.2551077,110100.0,110080.0,0.18168198]
[1756216491019,0.01534889,110100.0,110090.0,0.18166954]
[1756216491266,0.00898133,110100.0,110090.0,0.27313156]
[1756216491480,0.00898133,110100.0,110090.0,0.33846791]
[1756216491727,0.19063437,110100.0,110090.0,0.15679837]
[1756216491942,0.19063437,110100.0,110090.0,0.33846791]
[1756216492154,0.19063437,110100.0,110090.0,0.15679837]
[1756216492575,0.19063437,110100.0,110090.0,0.33846791]
[1756216493036,0.19063437,110100.0,110090.0,0.15679837]
[1756216493250,0.19272437,110100.0,110090.0,0.33850791]
[1756216493463,0.19272437,110100.0,110090.0,0.15683837]
[1756216494029,0.19272437,110100.0,110090.0,0.33850791]
[1756216494030,0.19063437,110100.0,110090.0,0.33850791]
[1756216494432,0.00054314,110100.0,110090.0,0.34055791]
[1756216494680,0.00054314,110100.0,110090.0,0.34354791]
[1756216495336,0.18219618,110100.0,110090.0,0.09150202]
[1756216495997,0.79954837,110100.0,110090.0,0.28686202]
[1756216496429,0.18219618,110100.0,110090.0,0.28686202]
[1756216496660,0.79954837,110100.0,110090.0,0.1954]
[1756216497292,0.80261837,110100.0,110090.0,4e-05]
[1756216499506,0.18428618,110100.0,110090.0,4e-05]
[1756216499715,0.79954837,110100.0,110090.0,4e-05]
[1756216500346,0.18428618,110100.0,110090.0,4e-05]
[1756216500571,0.79745837,110100.0,110090.0,4e-05]
[1756216500846,0.79745837,110100.0,110090.0,0.28048242]
[1756216501057,0.79954837,110100.0,110090.0,0.09150202]
[1756216501510,1.51416352,110100.0,110090.0,4e-05]
[1756216501731,6.27981123,110100.0,110090.0,4e-05]
[1756216501951,6.28615231,110100.0,110090.0,4e-05]
[1756216502171,6.28615329,110100.0,110090.0,4e-05]
[1756216502384,1.72399318,110100.0,110090.0,4e-05]
[1756216502611,1.71764921,110100.0,110090.0,4e-05]
[1756216502832,1.72399351,110100.0,110090.0,4e-05]
[1756216503485,6.48123651,110100.0,110090.0,4e-05]
[1756216504378,1.02400554,110100.0,110090.0,4e-05]
[1756216504645,0.49394681,110100.0,110090.0,0.35300202]
[1756216504828,0.49394681,110100.0,110090.0,0.35073116]
[1756216505466,0.67559985,110100.0,110090.0,0.09355202]
[1756216505684,0.67559985,110100.0,110090.0,0.09582288]
[1756216505895,0.00054314,110100.0,110090.0,0.32803218]
[1756216506110,0.00054314,110100.0,110090.0,0.32576132]
[1756216506334,0.67559985,110100.0,110090.0,0.14409178]
[1756216506575,0.67559985,110100.0,110090.0,0.09355202]
[1756216506788,0.67559985,110100.0,110090.0,0.27522156]
[1756216507026,0.67559985,110100.0,110090.0,0.09150202]
[1756216507451,0.18219618,110100.0,110090.0,0.27317156]
[1756216507672,0.79850222,110100.0,110090.0,4e-05]
[1756216507886,0.99338222,110100.0,110090.0,4e-05]
[1756216508118,6.10199285,110100.0,110090.0,4e-05]
[1756216508354,6.19345303,110100.0,110090.0,4e-05]
[1756216508617,6.26968147,110100.0,110090.0,4e-05]
[1756216509289,6.26968147,110100.0,110020.0,0.61319272]
[1756216509290,0.1817686,110030.0,110020.0,4e-05]
[1756216509518,0.79607464,110030.0,110020.0,4e-05]
[1756216509742,0.79607464,110030.0,110020.0,0.00523]
[1756216509957,0.18175209,110040.0,110020.0,0.18701512]
[1756216510167,0.18175209,110040.0,110020.0,0.27539714]
[1756216510376,1.13605813,110040.0,110030.0,0.0725196]
[1756216510598,0.79605813,110050.0,110040.0,0.18175209]
[1756216510819,0.34,110050.0,110040.0,0.00519]
[1756216511044,0.52173557,110050.0,110040.0,0.00211]
[1756216511274,1.13604161,110050.0,110040.0,0.00211]
[1756216511490,1.13604161,110050.0,110040.0,0.18694209]
[1756216511712,1.13604161,110050.0,110040.0,0.00211]
[1756216511930,0.52178325,110050.0,110040.0,0.00211]
[1756216512154,0.18175209,110040.0,110030.0,0.16398162]
[1756216512373,0.79605813,110040.0,110030.0,0.09146202]
[1756216512586,0.79605813,110040.0,110030.0,0.27323062]
[1756216513020,0.79605813,110040.0,110030.0,0.27534062]
[1756216513239,0.79605813,110040.0,110030.0,0.09220784]
[1756216513466,0.1817686,110030.0,110020.0,0.44953692]
[1756216513691,0.79607464,110030.0,110020.0,0.54099894]
[1756216513918,0.79607464,110030.0,110020.0,0.09150202]
[1756216514687,0.79607464,110030.0,110020.0,4e-05]
[1756216515351,0.79807464,110030.0,110020.0,0.18182512]
[1756216515589,0.61630604,110030.0,110020.0,0.18182512]
[1756216515817,1.14102464,110030.0,110020.0,4e-05]
[1756216516736,5.98972966,110030.0,110020.0,4e-05]
[1756216517224,5.99608442,110030.0,110020.0,4e-05]
[1756216517456,5.98972966,110030.0,110020.0,4e-05]
[1756216518165,5.99913293,110030.0,110020.0,4e-05]
[1756216518397,6.19369293,110030.0,110020.0,4e-05]
[1756216518902,5.99913293,110030.0,110020.0,4e-05]
[1756216519135,6.20000389,110030.0,110020.0,4e-05]
[1756216519371,6.00548389,110030.0,110020.0,4e-05]
[1756216519612,6.19361293,110030.0,110020.0,4e-05]
[1756216519863,5.2790116,110030.0,110020.0,4e-05]
[1756216520103,1.13607464,110030.0,110020.0,4e-05]
[1756216520326,1.13807464,110030.0,110020.0,4e-05]
[1756216520540,1.33251464,110030.0,110020.0,4e-05]
[1756216520994,1.34227511,110030.0,110020.0,4e-05]
[1756216521455,1.15078511,110030.0,110020.0,4e-05]
[1756216521681,1.34522511,110030.0,110020.0,4e-05]
[1756216521907,5.90802811,110030.0,110020.0,4e-05]
[1756216522134,6.10242811,110030.0,110020.0,4e-05]
[1756216522575,5.29077207,110030.0,110020.0,4e-05]
[1756216522800,1.34223511,110030.0,110020.0,4e-05]
[1756216523692,1.34215511,110030.0,110020.0,4e-05]
[1756216524162,1.14783511,110030.0,110020.0,4e-05]
[1756216524384,1.34022832,110030.0,110020.0,4e-05]
[1756216524609,6.10042132,110030.0,110020.0,4e-05]
[1756216525054,6.19188334,110030.0,110020.0,4e-05]
[1756216525300,6.19822758,110030.0,110020.0,4e-05]
[1756216526167,5.58380154,110030.0,110020.0,4e-05]
[1756216526380,6.19810758,110030.0,110020.0,4e-05]
[1756216527033,6.39810758,110030.0,110020.0,4e-05]
[1756216528738,6.00390758,110030.0,110020.0,4e-05]
[1756216528961,6.19802758,110030.0,110020.0,4e-05]
[1756216529174,6.19503758,110030.0,110020.0,4e-05]
[1756216529393,6.10357556,110030.0,110020.0,4e-05]
[1756216529609,6.10652556,110030.0,110020.0,4e-05]
[1756216530282,6.10018132,110030.0,110020.0,4e-05]
[1756216530559,6.09723132,110030.0,110020.0,4e-05]
[1756216530992,6.10357614,110030.0,110020.0,4e-05]
[1756216531631,6.19798845,110030.0,110020.0,4e-05]
[1756216532068,6.19503845,110030.0,110020.0,4e-05]
[1756216532487,5.57873241,110030.0,110020.0,4e-05]
[1756216532699,0.53594739,110030.0,110020.0,0.00523]
[1756216532918,1.33786832,110030.0,110020.0,0.00215]
[1756216533337,1.14590832,110030.0,110020.0,4e-05]
[1756216533566,1.14390832,110030.0,110020.0,0.00523]
[1756216533782,0.18175209,110040.0,110030.0,0.1817686]
[1756216534002,0.18175209,110040.0,110030.0,0.00519]
[1756216534206,0.6817686,110030.0,110020.0,4e-05]
[1756216534407,0.1817686,110030.0,110020.0,0.00312]
[1756216534622,0.79607464,110030.0,110020.0,0.00523]
[1756216535259,0.98991464,110030.0,110020.0,4e-05]
[1756216535469,0.99956974,110030.0,110020.0,0.00215]
[1756216535681,0.1914237,110030.0,110020.0,0.00523]
[1756216535886,0.80572974,110030.0,110020.0,0.00523]
[1756216536106,0.86312974,110030.0,110020.0,4e-05]
[1756216536302,0.86512974,110030.0,110020.0,4e-05]
[1756216536513,0.86512974,110030.0,110020.0,0.00215]
[1756216536514,0.86312974,110030.0,110020.0,0.00215]
[1756216536940,0.86312974,110030.0,110020.0,0.00532]
[1756216537413,0.2488237,110030.0,110020.0,0.18710512]
[1756216537615,0.52175209,110040.0,110020.0,0.23124756]
[1756216537813,0.37550325,110050.0,110030.0,0.09690412]
[1756216538021,0.18175209,110040.0,110030.0,0.09690412]
[1756216538267,0.18175209,110040.0,110030.0,0.27867272]
[1756216538474,1.32980929,110050.0,110040.0,0.18175209]
[1756216538686,0.73033443,110050.0,110040.0,0.18381209]
[1756216538910,0.73033443,110050.0,110040.0,0.18698209]
[1756216538911,0.35487886,110050.0,110040.0,0.18698209]
[1756216539344,0.35487886,110050.0,110040.0,0.27844411]
[1756216539345,4.768e-05,110050.0,110040.0,0.27844411]
[1756216540891,4.768e-05,110050.0,110040.0,0.34836411]
[1756216541315,4.768e-05,110050.0,110040.0,0.54192411]
[1756216541952,4.768e-05,110050.0,110040.0,0.54188411]
[1756216542159,4.768e-05,110050.0,110040.0,0.58358089]
[1756216542369,4.768e-05,110050.0,110040.0,0.6673678]
[1756216543775,4.768e-05,110050.0,110040.0,1.28167384]
[1756216544656,4.768e-05,110050.0,110040.0,0.6672078]
[1756216544851,4.768e-05,110050.0,110040.0,0.4738478]
[1756216545002,4.768e-05,110050.0,110040.0,0.6671678]
[1756216545198,4.768e-05,110050.0,110040.0,0.4738478]
[1756216545428,4.768e-05,110050.0,110040.0,0.6671678]
[1756216546613,4.768e-05,110050.0,110040.0,1.28147384]
[1756216546820,4.768e-05,110050.0,110040.0,1.62147384]
[1756216547451,4.768e-05,110050.0,110040.0,1.0071678]
[1756216547656,4.768e-05,110050.0,110040.0,0.8138478]
[1756216547861,4.768e-05,110050.0,110040.0,1.0070478]
[1756216548270,4.768e-05,110050.0,110040.0,0.8138478]
[1756216548468,4.768e-05,110050.0,110040.0,1.0070078]
[1756216548702,4.768e-05,110050.0,110040.0,1.30717306]
[1756216549105,4.768e-05,110050.0,110040.0,1.50025306]
[1756216549474,0.1907885,110070.0,110040.0,0.57791089]
[1756216549475,0.49332526,110060.0,110040.0,0.57791089]
[1756216549687,0.67504445,110060.0,110050.0,0.18173557]
[1756216549904,0.49535526,110060.0,110050.0,0.18173557]
[1756216550129,0.18170255,110070.0,110060.0,0.18171906]
[1756216550356,0.18170255,110070.0,110060.0,0.37681906]
[1756216550580,0.68439464,110080.0,110060.0,0.37475906]
[1756216550824,0.52168733,110080.0,110070.0,0.18170255]
[1756216551526,0.52371733,110080.0,110070.0,0.18170255]
[1756216551951,0.52371733,110080.0,110060.0,0.46939108]
[1756216552157,0.52371733,110080.0,110060.0,0.46610108]
[1756216552158,0.67502781,110070.0,110060.0,0.46610108]
[1756216552362,0.67705781,110070.0,110060.0,0.46610108]
[1756216552821,0.18171906,110060.0,110040.0,0.30562647]
[1756216553037,0.67504432,110060.0,110050.0,0.46611759]
[1756216553249,0.18374906,110060.0,110050.0,0.46611759]
[1756216553464,0.18171906,110060.0,110050.0,0.46817759]
[1756216553673,0.18170255,110070.0,110060.0,0.18171906]
[1756216553876,0.18373255,110070.0,110060.0,0.18171906]
[1756216554079,0.18373255,110070.0,110050.0,0.546668]
[1756216554620,0.18373255,110070.0,110060.0,0.18171906]
[1756216555026,0.53077163,110080.0,110070.0,0.18170255]
[1756216555224,0.53280163,110080.0,110070.0,0.1928]
[1756216555426,1.02612689,110080.0,110070.0,0.1928]
[1756216555662,0.18168733,110080.0,110070.0,0.37450255]
[1756216555914,0.18168604,110080.0,110070.0,0.53627993]
[1756216556231,0.18168604,110080.0,110070.0,0.53310993]
[1756216556437,0.18168604,110080.0,110050.0,0.33163558]
[1756216556438,0.6893356,110080.0,110050.0,0.33163558]
[1756216556645,0.67502781,110070.0,110060.0,0.46590108]
[1756216556831,0.67705781,110070.0,110060.0,0.46590108]
[1756216557043,0.18171906,110060.0,110050.0,0.18173557]
[1756216557249,0.67705781,110070.0,110060.0,0.18171906]
[1756216557449,0.18171906,110060.0,110050.0,0.46904759]
[1756216557662,0.18171906,110060.0,110050.0,0.546198]
[1756216557880,0.11932089,110070.0,110060.0,0.18171906]
[1756216558290,0.12135089,110070.0,110060.0,0.18171906]
[1756216558699,0.18171906,110060.0,110050.0,0.546198]
[1756216558909,0.18374906,110060.0,110050.0,0.36125243]
[1756216559116,0.67707432,110060.0,110050.0,0.09146202]
[1756216559328,0.18173557,110050.0,110040.0,0.06992]
[1756216559554,0.18176274,110040.0,110020.0,0.25487275]
[1756216559766,0.67712386,110030.0,110020.0,0.09150202]
[1756216559975,0.67712386,110030.0,110020.0,8.768e-05]
[1756216560413,5.77757686,110030.0,110020.0,8.768e-05]
[1756216560619,5.48309474,110030.0,110020.0,8.768e-05]
[1756216560882,5.97642,110030.0,110020.0,8.768e-05]
[1756216561292,5.2842516,110030.0,110020.0,8.768e-05]
[1756216561504,5.28740504,110030.0,110020.0,8.768e-05]
[1756216561969,5.2810416,110030.0,110020.0,8.768e-05]
[1756216562224,5.77436686,110030.0,110020.0,8.768e-05]
[1756216562431,0.1817686,110030.0,110020.0,0.1818728]
[1756216562841,0.1817686,110030.0,110020.0,0.3762928]
[1756216563986,0.867448,110040.0,110020.0,0.3762928]
[1756216564205,4.9390116,110030.0,110020.0,0.3762928]
[1756216564421,0.1817686,110030.0,110020.0,0.3762928]
[1756216564645,0.1817686,110030.0,110020.0,0.19244768]
[1756216564909,0.67712386,110030.0,110020.0,8.768e-05]
[1756216565147,0.68033386,110030.0,110020.0,8.768e-05]
[1756216565367,1.02033386,110030.0,110020.0,8.768e-05]
[1756216565582,0.5270086,110030.0,110020.0,8.768e-05]
[1756216565810,1.02033386,110030.0,110020.0,8.768e-05]
[1756216566047,1.21257386,110030.0,110020.0,8.768e-05]
[1756216566514,0.7192486,110030.0,110020.0,8.768e-05]
[1756216566736,1.20936386,110030.0,110020.0,8.768e-05]
[1756216566962,5.96958686,110030.0,110020.0,8.768e-05]
[1756216568541,5.4762616,110030.0,110020.0,8.768e-05]
[1756216568805,6.06741239,110030.0,110020.0,8.768e-05]
[1756216569225,6.09474839,110030.0,110020.0,8.768e-05]
[1756216569666,5.90250839,110030.0,110020.0,8.768e-05]
[1756216569886,6.09454839,110030.0,110020.0,8.768e-05]
[1756216570104,5.90250839,110030.0,110020.0,8.768e-05]
[1756216570307,6.06080888,110030.0,110020.0,8.768e-05]
[1756216570510,5.77734686,110030.0,110020.0,8.768e-05]
[1756216570718,5.96636686,110030.0,110020.0,8.768e-05]
[1756216571339,5.77734686,110030.0,110020.0,8.768e-05]
[1756216571544,6.06076888,110030.0,110020.0,8.768e-05]
[1756216571746,6.06708543,110030.0,110020.0,8.768e-05]
[1756216571983,6.06708556,110030.0,110020.0,8.768e-05]
[1756216572171,5.87516556,110030.0,110020.0,8.768e-05]
[1756216572375,6.06072888,110030.0,110020.0,8.768e-05]
[1756216573507,5.86582888,110030.0,110020.0,8.768e-05]
[1756216573714,5.2790116,110030.0,110020.0,8.768e-05]
[1756216573954,0.5217686,110030.0,110020.0,0.00204768]
[1756216574153,0.1817686,110030.0,110020.0,0.00204768]
[1756216574478,0.5217686,110030.0,110020.0,0.1838328]
[1756216574679,5.77727686,110030.0,110020.0,8.768e-05]
[1756216575086,5.86873888,110030.0,110020.0,8.768e-05]
[1756216575490,5.87509241,110030.0,110020.0,8.768e-05]
[1756216576875,0.52180165,110010.0,110000.0,4e-05]
[1756216577201,6.03441007,110010.0,110000.0,0.00018292]
[1756216577410,5.47068465,110010.0,110000.0,0.00018292]
[1756216577613,5.96400991,110010.0,110000.0,0.00018292]
[1756216577818,5.96596991,110010.0,110000.0,0.00018292]
[1756216578239,5.97539778,110010.0,110000.0,0.00018292]
[1756216579510,5.31581052,110010.0,110000.0,0.00018292]
[1756216579724,0.72274952,110010.0,110000.0,0.00534292]
[1756216579947,1.21803478,110010.0,110000.0,0.00018292]
[1756216580131,5.97527778,110010.0,110000.0,0.00018292]
[1756216580385,5.97825778,110010.0,110000.0,0.00018292]
[1756216581214,5.97527778,110010.0,110000.0,0.00018292]
[1756216581426,5.97825778,110010.0,110000.0,0.00018292]
[1756216581705,5.97527778,110010.0,110000.0,0.00018292]
[1756216582130,5.97523778,110010.0,110000.0,0.00018292]
[1756216582333,5.48191252,110010.0,110000.0,0.00018292]
[1756216582671,5.97523778,110010.0,110000.0,0.00018292]
[1756216582851,5.97821778,110010.0,110000.0,0.00018292]
[1756216583089,5.97523778,110010.0,110000.0,0.00018292]
[1756216583324,5.97821778,110010.0,110000.0,0.00018292]
[1756216583537,6.07603853,110010.0,110000.0,0.00018292]
[1756216584121,5.58271327,110010.0,110000.0,0.00018292]
[1756216584328,6.07603853,110010.0,110000.0,0.00018292]
[1756216584957,6.07603853,110010.0,110000.0,1e-08]
[1756216585187,6.85214691,110010.0,110000.0,1e-08]
[1756216585415,7.15376307,110010.0,110000.0,1e-08]
[1756216585626,7.12586759,110010.0,110000.0,1e-08]
[1756216585828,7.13888925,110010.0,110000.0,1e-08]
[1756216587299,0.97181818,110000.0,109990.0,1e-08]
[1756216587506,7.11829138,110000.0,109990.0,1e-08]
[1756216587708,7.12025138,110000.0,109990.0,1e-08]
[1756216587965,7.12323138,110000.0,109990.0,1e-08]
[1756216589221,7.15561593,110000.0,109990.0,1e-08]
[1756216589672,7.1316628,110000.0,109990.0,1e-08]
[1756216589881,7.15561593,110000.0,109990.0,1e-08]
[1756216590734,7.18630784,110000.0,109990.0,1e-08]
[1756216591832,7.13135441,110000.0,109990.0,1e-08]
[1756216594708,0.52188432,109960.0,109950.0,0.24382047]
[1756216594928,0.18186778,109970.0,109960.0,0.18188432]
[1756216595154,0.40902364,109980.0,109960.0,0.18384432]
[1756216595381,0.18185124,109980.0,109970.0,0.25438738]
[1756216595595,5.097243,109980.0,109970.0,0.25634738]
[1756216595806,0.19095518,109990.0,109980.0,0.18185124]
[1756216596035,0.19122952,110010.0,109990.0,0.18183471]
[1756216596036,0.2003196,110010.0,109990.0,0.18183471]
[1756216596244,0.24371191,110010.0,110000.0,0.18377818]
[1756216596448,0.19759188,110010.0,110000.0,0.18697818]
[1756216596655,0.19122952,110010.0,110000.0,0.18697818]
[1756216597084,0.18180165,110010.0,110000.0,0.18697818]
[1756216597538,0.18180165,110010.0,110000.0,0.00516]
[1756216598419,0.19118353,110010.0,110000.0,0.00516]
[1756216598881,0.68450879,110010.0,110000.0,0.00196]
[1756216599324,0.19118353,110010.0,110000.0,0.00495]
[1756216599753,0.68450879,110010.0,110000.0,0.00495]
[1756216599995,0.18183471,109990.0,109980.0,0.00299]
[1756216600206,0.18183471,109990.0,109980.0,0.27630326]
[1756216600433,0.18183471,109990.0,109980.0,0.27832326]
[1756216600680,0.86555805,110000.0,109980.0,0.27832326]
[1756216600897,0.18183279,110000.0,109990.0,0.18482471]
[1756216601117,0.39059361,110010.0,109990.0,0.18684471]
[1756216601339,0.73695814,110010.0,110000.0,0.00299]
[1756216601555,0.73695814,110010.0,110000.0,0.00501]
[1756216601999,1.2302834,110010.0,110000.0,0.00202]
[1756216603083,1.2302834,110010.0,110000.0,0.18686818]
[1756216603507,0.34636453,110010.0,110000.0,0.18686818]
[1756216603731,0.40845,110030.0,110010.0,0.18180165]
[1756216603965,0.38747959,110030.0,110020.0,0.18178512]
[1756216604175,0.38747959,110030.0,110020.0,0.18380512]
[1756216604421,0.73724966,110030.0,110020.0,0.18679512]
[1756216604886,0.19177962,110030.0,110020.0,0.18679512]
[1756216605114,0.18200955,110030.0,110020.0,0.18679512]
[1756216606249,0.19141546,110030.0,110020.0,0.18679512]
[1756216606453,0.00014298,110030.0,110020.0,0.18679512]
[1756216606694,0.50014298,110030.0,110020.0,0.18679512]
[1756216606972,4.75738598,110030.0,110020.0,0.18679512]
[1756216607146,0.00014298,110030.0,110020.0,0.18679512]
[1756216607621,0.00014298,110030.0,110020.0,1.0477346]
[1756216608281,0.00014298,110030.0,110020.0,0.55440934]
[1756216608554,0.18191158,110030.0,110020.0,0.46813714]
[1756216608778,0.18191158,110030.0,110020.0,0.27825714]
[1756216608999,0.18191158,110030.0,110020.0,0.00202]
[1756216609221,0.67523684,110030.0,110020.0,0.00202]
[1756216609457,0.18191158,110030.0,110020.0,0.00202]
[1756216609895,0.67523684,110030.0,110020.0,0.00202]
[1756216610133,0.18191158,110030.0,110020.0,0.00202]
[1756216610572,0.18191158,110030.0,110020.0,0.18679512]
[1756216611022,0.18191158,110030.0,110020.0,0.18380512]
[1756216611458,0.18191158,110030.0,110020.0,0.18679512]
[1756216611898,0.18191158,110030.0,110020.0,0.18380512]
[1756216612608,0.00014298,110030.0,110020.0,0.18679512]
[1756216612819,0.00014298,110030.0,110020.0,0.27825714]
[1756216613729,0.18191158,110030.0,110020.0,0.27825714]
[1756216614164,0.18191158,110030.0,110020.0,0.46478714]
[1756216614575,0.67523684,110030.0,110020.0,0.1915]
[1756216614797,0.67523684,110030.0,110020.0,0.18380512]
[1756216615001,0.67523684,110030.0,110020.0,0.00202]
[1756216615208,0.18178512,110020.0,110010.0,0.41488202]
[1756216615419,0.18178512,110020.0,110010.0,0.50634404]
[1756216615627,0.18178512,110020.0,110010.0,0.50836404]
[1756216615841,0.18178512,110020.0,110010.0,0.31892404]
[1756216616052,0.18178512,110020.0,110010.0,0.50836404]
[1756216616258,0.18178512,110020.0,110010.0,0.31892404]
[1756216616475,0.18178512,110020.0,110010.0,0.50832404]
[1756216617101,0.18178512,110020.0,110010.0,0.31593404]
[1756216617322,0.18180165,110010.0,110000.0,0.37117818]
[1756216617527,0.67718691,110010.0,110000.0,0.00206]
[1756216617741,0.67718691,110010.0,110000.0,4e-05]
[1756216617942,0.68037691,110010.0,110000.0,4e-05]
[1756216618151,0.67718691,110010.0,110000.0,4e-05]
[1756216618368,1.20965691,110010.0,110000.0,4e-05]
[1756216618598,6.62160719,110010.0,110000.0,4e-05]
[1756216618813,6.12828193,110010.0,110000.0,4e-05]
[1756216619036,5.63495667,110010.0,110000.0,4e-05]
[1756216619246,6.12828193,110010.0,110000.0,4e-05]
[1756216620140,6.62160719,110010.0,110000.0,4e-05]
[1756216620350,6.13463694,110010.0,110000.0,4e-05]
[1756216620973,6.62160719,110010.0,110000.0,4e-05]
[1756216621181,6.627964,110010.0,110000.0,4e-05]
[1756216621392,6.438684,110010.0,110000.0,4e-05]
[1756216621632,6.627764,110010.0,110000.0,4e-05]
[1756216621824,7.077764,110010.0,110000.0,4e-05]
[1756216622033,7.13316575,110010.0,110000.0,4e-05]
[1756216622235,7.10557016,110010.0,110000.0,4e-05]
[1756216622488,7.16052359,110010.0,110000.0,4e-05]
[1756216622728,7.17637567,110010.0,110000.0,4e-05]
[1756216622940,6.98729567,110010.0,110000.0,4e-05]
[1756216623148,6.92642951,110010.0,110000.0,4e-05]
[1756216623358,7.11029116,110010.0,110000.0,4e-05]
[1756216623573,6.92129116,110010.0,110000.0,4e-05]
[1756216623797,7.06375565,110010.0,110000.0,4e-05]
[1756216624429,7.06367565,110010.0,110000.0,4e-05]
[1756216624641,6.51541266,110010.0,110000.0,4e-05]
[1756216624853,6.31537266,110010.0,110000.0,4e-05]
[1756216625069,5.60535874,110010.0,110000.0,4e-05]
[1756216625305,5.79423874,110010.0,110000.0,4e-05]
[1756216625531,5.94535874,110010.0,110000.0,4e-05]
[1756216625734,5.79100874,110010.0,110000.0,4e-05]
[1756216625951,5.94216874,110010.0,110000.0,4e-05]
[1756216626178,5.51070672,110010.0,110000.0,0.00206]
[1756216626452,5.69748672,110010.0,110000.0,0.00505]
[1756216626665,6.03318991,110010.0,110000.0,4e-05]
[1756216626867,6.04256135,110010.0,110000.0,4e-05]
[1756216628138,5.84865135,110010.0,110000.0,0.0053]
[1756216628345,5.62104991,110010.0,110000.0,0.0053]
[1756216628554,5.62104991,110010.0,110000.0,0.00215]
[1756216628771,5.12772465,110010.0,110000.0,0.0053]
[1756216628988,0.89114391,110010.0,110000.0,0.0053]
[1756216629446,0.18180165,110010.0,110000.0,0.18711818]
[1756216629664,0.027334,110020.0,110010.0,0.18180165]
[1756216629870,0.18178512,110020.0,110010.0,0.18706165]
[1756216630081,0.67511038,110020.0,110010.0,0.00526]
[1756216630304,0.67511038,110020.0,110010.0,0.18706165]
[1756216630514,0.67511038,110020.0,110010.0,0.00526]
[1756216631567,0.86359038,110020.0,110010.0,0.00526]
[1756216633039,0.37026512,110020.0,110010.0,0.18706165]
[1756216633230,0.86359038,110020.0,110010.0,0.18706165]
[1756216633434,0.67511038,110020.0,110010.0,0.18706165]
[1756216633638,0.40669201,110030.0,110010.0,0.18706165]
[1756216633850,0.02747498,110030.0,110020.0,0.18493512]
[1756216634106,0.50014298,110030.0,110020.0,0.27850714]
[1756216634299,0.00014298,110030.0,110020.0,0.27850714]
[1756216634507,0.25166519,110070.0,110050.0,0.18173557]
[1756216634719,4.93896206,110060.0,110050.0,0.22123434]
[1756216634925,0.67504432,110060.0,110050.0,0.00526]
[1756216635353,0.67504432,110060.0,110040.0,0.37002652]
[1756216635354,0.67721432,110060.0,110040.0,0.18490209]
[1756216635564,0.18173557,110050.0,110040.0,0.18490209]
[1756216635775,0.67504432,110060.0,110050.0,0.18384557]
[1756216635983,0.68430453,110060.0,110050.0,0.00211]
[1756216636190,0.68647453,110060.0,110050.0,0.00211]
[1756216636430,0.18173557,110050.0,110040.0,0.18490209]
[1756216636644,0.67506083,110050.0,110040.0,0.18490209]
[1756216636865,0.67506083,110050.0,110040.0,0.18701209]
[1756216637076,0.67506083,110050.0,110040.0,0.00211]
[1756216637285,0.67506083,110050.0,110040.0,0.18386209]
[1756216637286,0.18390557,110050.0,110040.0,0.18386209]
[1756216637497,0.49332526,110050.0,110040.0,0.18386209]
[1756216637703,0.68430453,110060.0,110050.0,0.18173557]
[1756216637938,0.68430453,110060.0,110050.0,0.00211]
[1756216638158,0.68647453,110060.0,110040.0,0.18490209]
[1756216638368,0.19314927,110060.0,110040.0,0.18490209]
[1756216638592,0.67506083,110050.0,110040.0,0.18490209]
[1756216638816,0.67506083,110050.0,110040.0,0.18701209]
[1756216639034,0.18173557,110050.0,110040.0,0.00211]
[1756216639282,0.67723083,110050.0,110040.0,0.18386209]
[1756216639508,0.86523083,110050.0,110040.0,0.18175209]
[1756216639719,0.86523083,110050.0,110040.0,0.18386209]
[1756216640136,0.86306083,110050.0,110040.0,0.18386209]
[1756216641187,0.188,110050.0,110040.0,0.18701209]
[1756216641400,0.69339048,110060.0,110050.0,0.18173557]
[1756216641401,0.87214453,110060.0,110050.0,0.18173557]
[1756216641595,0.87431453,110060.0,110050.0,0.18384557]
[1756216641884,0.19093339,110070.0,110050.0,0.18384557]
[1756216642092,5.257243,110060.0,110050.0,0.18699557]
[1756216642303,0.70964563,110070.0,110060.0,0.18171906]
[1756216642516,1.01734089,110070.0,110050.0,0.33291112]
[1756216642725,1.01734089,110070.0,110050.0,0.27634759]
[1756216642938,0.18171906,110060.0,110050.0,0.27634759]
[1756216643172,0.18171906,110060.0,110050.0,0.18384557]
[1756216643173,0.67504432,110060.0,110050.0,0.18384557]
[1756216643400,0.53144815,110070.0,110060.0,0.18171906]
[1756216643619,0.84307086,110070.0,110060.0,0.18382906]
[1756216643839,1.21245341,110070.0,110060.0,0.18382906]
[1756216644257,1.21462341,110070.0,110050.0,0.18488557]
[1756216644475,0.18173557,110050.0,110040.0,0.19398969]
[1756216644707,0.67506083,110050.0,110040.0,0.28230171]
[1756216644914,0.67506083,110050.0,110040.0,0.18386209]
[1756216645539,0.67506083,110050.0,110040.0,0.00211]
[1756216645785,0.67506083,110050.0,110040.0,0.18701209]
[1756216645988,0.67504432,110060.0,110040.0,0.18701209]
[1756216646198,0.18173557,110050.0,110040.0,0.18701209]
[1756216647459,0.18175209,110040.0,110030.0,0.36920417]
[1756216647665,0.67507735,110040.0,110030.0,0.28101202]
[1756216647874,0.18175209,110040.0,110030.0,0.46278062]
[1756216648314,0.18175209,110040.0,110030.0,0.28101202]
[1756216648526,0.67724735,110040.0,110030.0,0.28101202]
[1756216648745,0.67724735,110040.0,110030.0,0.46278062]
[1756216649161,0.67506083,110050.0,110040.0,0.18175209]
[1756216649377,0.18175209,110040.0,110030.0,0.46382062]
[1756216649644,0.1817686,110030.0,110020.0,0.25174512]
[1756216649858,0.67507735,110040.0,110020.0,0.56466339]
[1756216650065,0.1817686,110030.0,110020.0,0.56781339]
[1756216650488,0.67509386,110030.0,110020.0,0.09357202]
[1756216650696,0.18178512,110020.0,110010.0,0.37219165]
[1756216650919,0.18178512,110020.0,110010.0,0.46365367]
[1756216651147,0.18178512,110020.0,110010.0,0.46576367]
[1756216651762,0.19109766,110020.0,110010.0,0.46576367]
[1756216651970,0.18178512,110020.0,110010.0,0.46576367]
[1756216652204,0.67728038,110020.0,110000.0,4.88193841]
[1756216652422,0.67728038,110020.0,110010.0,0.1872]
[1756216652631,0.18395512,110020.0,110010.0,0.37111165]
[1756216652840,0.87146996,110030.0,110010.0,0.37426165]
[1756216653016,0.87146996,110030.0,110020.0,0.18178512]
[1756216653258,0.18181627,110030.0,110020.0,0.18389512]
[1756216653522,0.18181627,110030.0,110020.0,0.00526]
[1756216653734,4.767e-05,110030.0,110020.0,0.29531704]
[1756216654362,4.767e-05,110030.0,110020.0,0.7886423]
[1756216654567,0.35619753,110050.0,110030.0,0.1817543]